lending/lending_fUSD_20241229
["ID","MTS","AMOUNT","RATE_DAILY","PERIOD"]
[347099301,1735497045950,-1103.6497081,0.00016736,2]
[347099302,1735497045959,-500.0,0.00016737,2]
[347099304,1735497045968,-518.41,0.00016737,2]
[347099305,1735497045978,-519.09,0.00016737,2]
[347099307,1735497045987,-512.7,0.00016738,2]
[347099309,1735497045996,-500.0,0.00016738,2]
[347099311,1735497046005,-1355.83,0.00016738,2]
[347099313,1735497046014,-635.86,0.00016738,2]
[347099315,1735497046024,-992.4,0.00016738,2]
[347099317,1735497046033,-1260.99671309,0.00016767,2]
[347099319,1735497046044,-775.91,0.00016782,2]
[347099321,1735497046054,-679.19,0.00016782,2]
[347099323,1735497046063,-3537.28,0.00016782,2]
[347099325,1735497046073,-150.0,0.00016793,2]
[347099327,1735497046082,-207.78,0.00016813,2]
[347099328,1735497046091,-1260.99671309,0.00016849,2]
[347099329,1735497046100,-152.0,0.00016882,4]
[347099330,1735497046109,-343.52,0.00016895,2]
[347099331,1735497046119,-150.0,0.000169,2]
[347099332,1735497046128,-150.0,0.00016902,2]
[347099333,1735497046137,-1260.99671309,0.00016932,2]
[347099334,1735497046146,-1500.0,0.00016934,2]
[347099335,1735497046155,-150.0,0.00016937,2]
[347099336,1735497046164,-150.0,0.00016942,2]
[347099337,1735497046173,-1702.99,0.00016962,7]
[347099338,1735497046182,-1702.99,0.00016962,7]
[347099339,1735497046192,-150.0,0.00016967,2]
[347099340,1735497046201,-150.0,0.00016967,2]
[347099341,1735497046211,-150.0,0.0001697,2]
[347099342,1735497046220,-150.0,0.00016978,2]
[347099343,1735497046230,-150.0,0.00016985,2]
[347099344,1735497046239,-152.18,0.00016986,2]
[347099345,1735497046248,-150.0,0.00016987,2]
[347099346,1735497046258,-1500.0,0.00016998,2]
[347099347,1735497046270,-150.0,0.00017005,2]
[347099348,1735497046279,-692.92,0.0001701,2]
[347099349,1735497046288,-532.63,0.0001701,2]
[347099350,1735497046297,-831.99,0.0001701,2]
[347099351,1735497046307,-1748.63,0.0001701,2]
[347099352,1735497046317,-761.11,0.0001701,2]
[347099353,1735497046327,-354.24779267,0.00017011,2]
[347099354,1735497046336,-518.41,0.00017011,2]
[347099355,1735497046348,-519.09,0.00017011,2]
[347099356,1735497046358,-512.7,0.00017012,2]
[347099357,1735497046367,-500.0,0.00017012,2]
[347099358,1735497046376,-1355.83,0.00017012,2]
[347099360,1735497046385,-635.86,0.00017012,2]
[347099361,1735497046394,-992.4,0.00017012,2]
[347099362,1735497046404,-1260.99671309,0.00017014,2]
[347099363,1735497046413,-150.0,0.00017021,2]
[347099364,1735497046422,-150.0,0.00017049,2]
[347099365,1735497046431,-700.1872808,0.00017052,2]
[347099366,1735497046440,-775.91,0.00017056,2]
[347099367,1735497046450,-679.19,0.00017056,2]
[347099368,1735497046460,-3537.28,0.00017056,2]
[347099370,1735497046469,-150.0,0.0001706,2]
[347099372,1735497046479,-150.0,0.00017067,2]
[347099373,1735497046488,-1260.99671309,0.00017096,2]
[347099375,1735497046498,-63925.52269699,0.000171,2]
[347099376,1735497046507,-150.0,0.00017111,2]
[347099377,1735497046516,-150.0,0.00017115,2]
[347099378,1735497046526,-2668.1096,0.0001713,2]
[347099379,1735497046536,-1000.0,0.00017139,2]
[347099380,1735497046546,-150.0,0.0001714,2]
[347099381,1735497046555,-150.0,0.00017157,2]
[347099382,1735497046564,-600.0,0.00017178,2]
[347099383,1735497046574,-1260.99671309,0.00017178,2]
[347099384,1735497046583,-167.25950436,0.000172,2]
[347099385,1735497046592,-150.0,0.00017223,2]
[347099386,1735497046601,-1702.99,0.00017235,7]
[347099387,1735497046611,-1702.99,0.00017235,7]
[347099388,1735497046621,-150.0,0.00017235,2]
[347099389,1735497046630,-150.0,0.00017235,2]
[347099390,1735497046639,-150.0,0.00017236,2]
[347099391,1735497046648,-150.0,0.00017241,2]
[347099392,1735497046658,-1260.99671309,0.0001726,2]
[347099393,1735497046667,-150.0,0.00017279,2]
[347099394,1735497046676,-692.92,0.00017284,2]
[347099395,1735497046685,-532.63,0.00017284,2]
[347099396,1735497046694,-831.99,0.00017284,2]
[347099397,1735497046704,-1748.63,0.00017284,2]
[347099398,1735497046713,-761.11,0.00017284,2]
[347099399,1735497046722,-518.41,0.00017285,2]
[347099400,1735497046731,-519.09,0.00017285,2]
[347099401,1735497046740,-512.7,0.00017286,2]
[347099402,1735497046749,-528.89668682,0.00017286,2]
[347099403,1735497046758,-1355.83,0.00017286,2]
[347099404,1735497046767,-635.86,0.00017286,2]
[347099405,1735497046776,-992.4,0.00017286,2]
[347099406,1735497046786,-150.0,0.00017288,2]
[347099407,1735497046796,-150.0,0.00017295,2]
[347099408,1735497046806,-348.29066092,0.00017299,2]
[347099409,1735497046816,-29684.550489,0.000173,2]
[347099410,1735497046825,-171.13318176,0.000173,2]
[347099411,1735497046835,-150.0,0.00017304,2]
[347099412,1735497046844,-150.0,0.00017306,2]
[347099413,1735497046853,-826.58,0.00017311,2]
[347099414,1735497046862,-775.91,0.0001733,2]
[347099415,1735497046872,-679.19,0.0001733,2]
[347099416,1735497046882,-3537.28,0.0001733,2]
[347099417,1735497046891,-1260.99671309,0.00017342,2]
[347099418,1735497046900,-150.0,0.00017345,2]
[347099419,1735497046910,-150.0,0.00017365,2]
[347099420,1735497046919,-150.0,0.00017366,2]
[347099421,1735497046929,-150.0,0.00017367,2]
[347099422,1735497046939,-221.8762545,0.0001737,2]
[347099423,1735497046949,-1100.0,0.0001737,2]
[347099424,1735497046958,-150.0,0.00017382,2]
[347099425,1735497046967,-150.0,0.00017389,2]
[347099426,1735497046976,-150.0,0.00017395,2]
[347099427,1735497046986,-11317.2631676,0.00017398,2]
[347099428,1735497046995,-4587.1160171,0.00017398,2]
[347099429,1735497047005,-344979.33,0.00017399,2]
[347099430,1735497047014,-826.58,0.00017399,2]
[347099431,1735497047023,-826.58,0.00017399,2]
[347099432,1735497047033,-1864.42,0.00017399,2]
[347099433,1735497047045,-1000.0,0.00017399,2]
[347099434,1735497047054,-500.0,0.00017399,2]
[347099435,1735497047064,-1000.0,0.000174,6]
[347099436,1735497047073,-462712.91512868,0.000174,2]
[347099437,1735497047083,-2000.0,0.000174,2]
[347099438,1735497047092,-14632.43776876,0.000174,2]
[347099439,1735497047102,-1345194.85121577,0.000174,2]
[347099440,1735497047263,-9576.77188676,0.000174,2]
[347099441,1735497047282,-716.41036233,0.000174,2]
[347099442,1735497047298,-1883.73394288,0.000174,2]
[347099443,1735497047350,-2255.77,0.0001482,2]
[347099444,1735497047359,-44752.35372918,0.000174,2]
[347099445,1735497047737,-76561.97129631,0.000174,2]
[347099446,1735497047752,-1042.82569781,0.000174,2]
[347099447,1735497047763,-384.90309798,0.000174,2]
[347099448,1735497047774,-114320.40697676,0.000174,2]
[347099449,1735497047847,-500.0,0.00012626,2]
[347099450,1735497047856,-2255.77,0.00015094,2]
[347099451,1735497047865,-2255.77,0.00015368,2]
[347099452,1735497047875,-2255.77,0.00015642,2]
[347099453,1735497047885,-48161.67163319,0.000174,2]
[347099454,1735497047897,-513.15753692,0.000174,2]
[347099455,1735497047908,-336.40627915,0.000174,2]
[347099456,1735497047919,-1169.0,0.000174,2]
[347099457,1735497047929,-12700.67655452,0.000174,2]
[347099458,1735497048227,-953.0,0.00015916,2]
[347099459,1735497048239,-598.96763424,0.00015916,2]
[347099460,1735497048250,-703.80236576,0.00015916,2]
[347099461,1735497048259,-2255.77,0.0001619,2]
[347099462,1735497048273,-207.0845042,0.00016932,2]
[347099463,1735497048283,-207.0845042,0.00017014,2]
[347099464,1735497048294,-207.0845042,0.00017096,2]
[347099465,1735497048304,-207.0845042,0.00017178,2]
[347099466,1735497048315,-207.0845042,0.0001726,2]
[347099467,1735497048325,-254.08866128,0.000173,2]
[347099468,1735497048335,-207.0845042,0.00017342,2]
[347099469,1735497048346,-207.0845042,0.00017397,2]
[347099470,1735497048356,-257.76190086,0.000174,2]
[347099471,1735497048378,-3325.85523167,0.000174,2]
[347099472,1735497048390,-2285.60119097,0.000174,2]
[347099473,1735497048409,-533.6499934,0.000174,2]
[347099474,1735497125998,160.08,0.00010137,2]
[347099477,1735497691179,-150.0,0.00020439,120]
[347099478,1735497691257,-500.0,0.00022215,120]
[347099479,1735497691313,-2000.0,0.00022215,120]
[347099480,1735497691370,-500.0,0.00022215,120]
[347099481,1735497691427,-200.0,0.00022215,120]
[347099482,1735497691495,-500.0,0.00023,120]
[347099483,1735497691551,-2500.472749,0.00023,120]
[347099484,1735497739149,302.91,0.00024844,120]
[347099485,1735497744144,352.47413248,0.00024844,120]
[347099486,1735497751503,150.0,0.00022109,120]
[347099487,1735497761862,290.0,0.00024844,120]
[347099488,1735497798231,500.0,0.00022215,120]
[347099489,1735497802126,2000.0,0.00022215,120]
[347099490,1735497806002,502.322775,0.00022215,120]
[347099491,1735497830591,200.0,0.00022215,120]
[347099492,1735497903189,1653.59249313,0.00024844,120]
[347099493,1735497903258,3892.0,0.00024844,120]
[347099632,1735497995081,1004.0,0.00024883,120]
[347099635,1735497998794,187.0,0.00010137,2]
[347099652,1735498107042,500.0,0.00017799,120]
[347099653,1735498107362,500.0,0.00017827,120]
[347099654,1735498107810,500.0,0.00017854,120]
[347099655,1735498108117,500.0,0.00017881,120]
[347099656,1735498108398,216.44,0.00017909,120]
[347099662,1735498232362,-150.0,0.00011507,2]
[347099663,1735498232372,-300.0,0.00011531,2]
[347099664,1735498232381,-507.43,0.00011532,2]
[347099665,1735498232394,-505.88,0.00011532,2]
[347099666,1735498232403,-501.9,0.00011532,2]
[347099667,1735498232413,-509.23,0.00011532,2]
[347099668,1735498232423,-491.26,0.00011532,2]
[347099669,1735498232432,-503.06,0.00011532,2]
[347099670,1735498232442,-501.34,0.00011532,2]
[347099671,1735498232451,-492.77,0.00011532,2]
[347099672,1735498232461,-498.87,0.00011532,2]
[347099673,1735498232471,-497.71,0.00011532,2]
[347099674,1735498232480,-501.39,0.00011532,2]
[347099675,1735498232490,-509.54,0.00011532,2]
[347099676,1735498232499,-12067.60783675,0.00011532,2]
[347099677,1735498232511,-37932.39216325,0.00011532,2]
[347099678,1735498232520,-500.0,0.00012398,2]
[347099679,1735498232530,-500.0,0.00012398,2]
[347099680,1735498232539,-801.42,0.00012398,2]
[347099681,1735498232548,-335.93,0.0001243,2]
[347099682,1735498232557,-723.25,0.00012624,2]
[347099683,1735498232567,-733.33,0.00012624,2]
[347099684,1735498232576,-500.0,0.00012624,2]
[347099685,1735498232585,-500.0,0.00012624,2]
[347099686,1735498232595,-500.0,0.00012625,2]
[347099687,1735498232605,-500.0,0.00012625,2]
[347099688,1735498232615,-483.54332006,0.00012625,2]
[347099689,1735498232625,-576.73008626,0.00012625,2]
[347099690,1735498232635,-500.0,0.00012625,2]
[347099692,1735498232644,-500.0,0.00012625,2]
[347099694,1735498232653,-997.07,0.00012625,2]
[347099696,1735498232663,-2080.91,0.00012626,2]
[347099698,1735498232672,-500.0,0.00012626,2]
[347099701,1735498232682,-500.0,0.00012626,2]
[347099703,1735498232691,-500.0,0.00012626,2]
[347099705,1735498232700,-500.0,0.00012626,2]
[347099707,1735498232710,-420.0,0.00012665,2]
[347099709,1735498232719,-500.0,0.00012672,2]
[347099711,1735498232728,-500.0,0.00012672,2]
[347099714,1735498232737,-801.42,0.00012672,2]
[347099717,1735498232746,-733.33,0.00012898,2]
[347099720,1735498232756,-500.0,0.00012898,2]
[347099723,1735498232765,-1594.33,0.00012898,2]
[347099726,1735498232774,-500.0,0.00012898,2]
[347099729,1735498232784,-371.09,0.00012899,2]
[347099732,1735498232793,-179.68,0.00012899,2]
[347099735,1735498232802,-997.07,0.00012899,2]
[347099737,1735498232811,-2080.91,0.000129,2]
[347099740,1735498232821,-567.69,0.000129,2]
[347099743,1735498232830,-500.0,0.000129,2]
[347099746,1735498232839,-500.0,0.000129,2]
[347099749,1735498232849,-500.0,0.000129,2]
[347099752,1735498232859,-500.0,0.00012946,2]
[347099755,1735498232868,-500.0,0.00012946,2]
[347099757,1735498232878,-801.42,0.00012946,2]
[347099759,1735498232887,-500.0,0.00013068,2]
[347099761,1735498232896,-1000.0,0.00013074,2]
[347099762,1735498232905,-733.33,0.00013172,2]
[347099764,1735498232915,-500.0,0.00013172,2]
[347099766,1735498232924,-1594.33,0.00013172,2]
[347099768,1735498232933,-500.0,0.00013172,2]
[347099770,1735498232943,-997.07,0.00013173,2]
[347099772,1735498232952,-500.0,0.00013174,2]
[347099774,1735498232961,-500.0,0.00013174,2]
[347099776,1735498232971,-500.0,0.00013174,2]
[347099778,1735498232980,-500.0,0.00013174,2]
[347099781,1735498232990,-500.0,0.00013174,2]
[347099782,1735498233002,-500.0,0.00013174,2]
[347099784,1735498233012,-500.0,0.00013174,2]
[347099787,1735498233021,-1358.06,0.00013174,2]
[347099789,1735498233031,-500.0,0.00013174,2]
[347099791,1735498233042,-500.0,0.00013174,2]
[347099793,1735498233055,-500.0,0.00013174,2]
[347099795,1735498233065,-500.0,0.00013174,2]
[347099797,1735498233075,-2080.91,0.00013174,2]
[347099800,1735498233094,-500.0,0.00013174,2]
[347099802,1735498233105,-920.38,0.00013174,2]
[347099804,1735498233115,-500.0,0.00013174,2]
[347099805,1735498233124,-500.0,0.00013174,2]
[347099807,1735498233134,-173.28,0.00013174,2]
[347099809,1735498233144,-723.25,0.00013181,2]
[347099811,1735498233154,-500.0,0.0001322,2]
[347099813,1735498233164,-236.25,0.0001322,2]
[347099816,1735498233175,-801.42,0.0001322,2]
[347099818,1735498233184,-314.4155514,0.000133,2]
[347099820,1735498233194,-169.51559904,0.000133,2]
[347099821,1735498233205,-164.03291922,0.00013386,2]
[347099824,1735498233215,-500.0,0.00013446,2]
[347099826,1735498233225,-1594.33,0.00013446,2]
[347099828,1735498233235,-500.0,0.00013446,2]
[347099830,1735498233245,-997.07,0.00013447,2]
[347099832,1735498233255,-243.25,0.00013448,2]
[347099834,1735498233265,-425.05,0.00013448,2]
[347099836,1735498233275,-500.0,0.00013448,2]
[347099838,1735498233285,-500.0,0.00013448,2]
[347099840,1735498233294,-500.0,0.00013448,2]
[347099842,1735498233303,-615.03,0.00013448,2]
[347099843,1735498233313,-500.0,0.00013448,2]
[347099846,1735498233323,-1358.06,0.00013448,2]
[347099848,1735498233332,-240.89,0.00013448,2]
[347099849,1735498233343,-500.0,0.00013448,2]
[347099852,1735498233353,-500.0,0.00013448,2]
[347099854,1735498233362,-500.0,0.00013448,2]
[347099855,1735498233372,-2080.91,0.00013448,2]
[347099858,1735498233382,-500.0,0.00013448,2]
[347099859,1735498233392,-920.38,0.00013448,2]
[347099862,1735498233402,-500.0,0.00013448,2]
[347099864,1735498233412,-504.33,0.00013448,2]
[347099866,1735498233421,-500.0,0.00013494,2]
[347099867,1735498233431,-801.42,0.00013494,2]
[347099870,1735498233442,-200.0,0.00013699,2]
[347099872,1735498233452,-363.15,0.00013699,2]
[347099873,1735498233462,-500.0,0.00013699,2]
[347099876,1735498233472,-500.0,0.0001372,2]
[347099878,1735498233482,-500.0,0.0001372,2]
[347099880,1735498233491,-1594.33,0.0001372,2]
[347099882,1735498233502,-500.0,0.0001372,2]
[347099884,1735498233511,-997.07,0.00013721,2]
[347099886,1735498233521,-500.0,0.00013722,2]
[347099888,1735498233531,-500.0,0.00013722,2]
[347099890,1735498233541,-577.23,0.00013722,2]
[347099892,1735498233551,-500.0,0.00013722,2]
[347099894,1735498233561,-1358.06,0.00013722,2]
[347099896,1735498233570,-500.0,0.00013722,2]
[347099898,1735498233580,-500.0,0.00013722,2]
[347099900,1735498233590,-2080.91,0.00013722,2]
[347099901,1735498233600,-500.0,0.00013722,2]
[347099903,1735498233611,-920.38,0.00013722,2]
[347099905,1735498233622,-432.69788905,0.00013722,2]
[347099907,1735498233643,-500.0,0.00013768,2]
[347099910,1735498233664,-801.42,0.00013768,2]
[347099911,1735498233685,-904.27,0.00013816,2]
[347099914,1735498233710,-300.0,0.00013909,2]
[347099916,1735498233731,-400.77668682,0.00013994,2]
[347099917,1735498233752,-500.0,0.00013994,2]
[347099919,1735498233775,-997.07,0.00013995,2]
[347099921,1735498233798,-500.0,0.00013996,2]
[347099923,1735498233814,-407.79154133,0.00013996,2]
[347099925,1735498233824,-500.0,0.00013996,2]
[347099927,1735498233834,-1358.06,0.00013996,2]
[347099930,1735498233848,-500.0,0.00013996,2]
[347099932,1735498233859,-389.48346732,0.00013996,2]
[347099934,1735498233875,-187.0365184,0.00013996,2]
[347099936,1735498233884,-95.0762816,0.00013996,2]
[347100349,1735498238132,-500.0,0.000131,2]
[347100351,1735498238142,-1985.8337184,0.00013996,2]
[347100353,1735498238151,-500.0,0.00013996,2]
[347100355,1735498238159,-920.38,0.00013996,2]
[347100357,1735498238168,-500.0,0.00014042,2]
[347100359,1735498238177,-801.42,0.00014042,2]
[347100361,1735498238186,-1057.0,0.00014101,2]
[347100363,1735498238195,-500.0,0.00014164,2]
[347100365,1735498238203,-500.0,0.00014268,2]
[347100367,1735498238212,-997.07,0.00014269,2]
[347100369,1735498238221,-500.0,0.0001427,2]
[347100371,1735498238230,-500.0,0.0001427,2]
[347100373,1735498238239,-1358.06,0.0001427,2]
[347100375,1735498238248,-500.0,0.0001427,2]
[347100377,1735498238257,-2080.91,0.0001427,2]
[347100378,1735498238266,-592.2335929,0.0001427,2]
[347100380,1735498238275,-920.38,0.0001427,2]
[347100382,1735498238283,-500.0,0.00014316,2]
[347100384,1735498238292,-801.42,0.00014316,2]
[347100386,1735498238301,-4000.0,0.00014375,2]
[347100388,1735498238310,-85.2926887,0.00014542,2]
[347100391,1735498238321,-414.7073113,0.00014542,2]
[347100392,1735498238331,-997.07,0.00014543,2]
[347100393,1735498238341,-500.0,0.00014544,2]
[347100394,1735498238350,-500.0,0.00014544,2]
[347100395,1735498238359,-1358.06,0.00014544,2]
[347100396,1735498238368,-500.0,0.00014544,2]
[347100397,1735498238378,-2080.91,0.00014544,2]
[347100398,1735498238387,-920.38,0.00014544,2]
[347100400,1735498238396,-500.0,0.0001459,2]
[347100402,1735498238405,-801.42,0.0001459,2]
[347100403,1735498238414,-151.0,0.00014685,2]
[347100404,1735498238423,-335.93,0.00014694,2]
[347100405,1735498238432,-390.54,0.00014816,2]
[347100406,1735498238441,-997.07,0.00014817,2]
[347100407,1735498238450,-500.0,0.00014818,2]
[347100408,1735498238459,-500.0,0.00014818,2]
[347100409,1735498238467,-1358.06,0.00014818,2]
[347100410,1735498238477,-339.56,0.00014818,2]
[347100411,1735498238486,-2080.91,0.00014818,2]
[347100412,1735498238495,-920.38,0.00014818,2]
[347100413,1735498238505,-250.0,0.00014828,2]
[347100414,1735498238514,-500.0,0.00014864,2]
[347100415,1735498238523,-801.42,0.00014864,2]
[347100416,1735498238533,-997.07,0.00015091,2]
[347100417,1735498238542,-567.55502771,0.00015092,2]
[347100418,1735498238551,-500.0,0.00015092,2]
[347100419,1735498238560,-1358.06,0.00015092,2]
[347100420,1735498238569,-2080.91,0.00015092,2]
[347100421,1735498238579,-920.38,0.00015092,2]
[347100422,1735498238588,-500.0,0.00015138,2]
[347100423,1735498238601,-300.0,0.00015179,2]
[347100424,1735498238610,-997.07,0.00015365,2]
[347100425,1735498238619,-500.0,0.00015366,2]
[347100426,1735498238628,-1358.06,0.00015366,2]
[347100427,1735498238638,-2080.91,0.00015366,2]
[347100428,1735498238647,-920.38,0.00015366,2]
[347100429,1735498238656,-500.0,0.00015412,2]
[347100430,1735498238665,-500.0,0.00015534,2]
[347100431,1735498238674,-904.27,0.00015543,2]
[347100432,1735498238683,-997.07,0.00015639,2]
[347100433,1735498238692,-500.0,0.0001564,2]
[347100434,1735498238701,-1358.06,0.0001564,2]
[347100435,1735498238711,-2080.91,0.0001564,2]
[347100436,1735498238719,-920.38,0.0001564,2]
[347100437,1735498238728,-723.25,0.00015641,2]
[347100438,1735498238738,-500.0,0.00015686,2]
[347100439,1735498238747,-150.0,0.00015805,2]
[347100440,1735498238756,-365.3,0.00015805,2]
[347100441,1735498238765,-500.0,0.00015808,2]
[347100442,1735498238774,-8325.0,0.000159,2]
[347100443,1735498238783,-997.07,0.00015913,2]
[347100444,1735498238792,-500.0,0.00015914,2]
[347100445,1735498238801,-1358.06,0.00015914,2]
[347100446,1735498238811,-2080.91,0.00015914,2]
[347100447,1735498238820,-920.38,0.00015914,2]
[347100448,1735498238830,-500.0,0.0001596,2]
[347100449,1735498238839,-500.0,0.00015999,2]
[347100450,1735498238849,-500.0,0.00015999,2]
[347100451,1735498238858,-527.88,0.00015999,2]
[347100452,1735498238867,-758.5,0.00015999,2]
[347100453,1735498238876,-500.0,0.00015999,2]
[347100454,1735498238885,-500.0,0.00015999,2]
[347100455,1735498238894,-500.0,0.00015999,2]
[347100456,1735498238903,-500.0,0.00015999,2]
[347100457,1735498238912,-500.0,0.00015999,2]
[347100458,1735498238922,-500.0,0.00015999,2]
[347100459,1735498238931,-500.0,0.00015999,2]
[347100460,1735498238940,-500.0,0.00015999,2]
[347100461,1735498238950,-500.0,0.00015999,2]
[347100462,1735498238959,-500.0,0.00015999,2]
[347100463,1735498238968,-500.0,0.00015999,2]
[347100464,1735498238977,-500.0,0.00015999,2]
[347100465,1735498238986,-500.0,0.00015999,2]
[347100466,1735498238997,-500.0,0.00015999,2]
[347100467,1735498239007,-500.0,0.00015999,2]
[347100468,1735498239016,-1199.92,0.00015999,2]
[347100469,1735498239025,-500.0,0.00015999,2]
[347100470,1735498239034,-500.0,0.00015999,2]
[347100471,1735498239045,-500.0,0.00015999,2]
[347100472,1735498239054,-500.0,0.00015999,2]
[347100473,1735498239062,-500.0,0.00015999,2]
[347100475,1735498239071,-500.0,0.00015999,2]
[347100477,1735498239080,-500.0,0.00015999,2]
[347100479,1735498239089,-500.0,0.00015999,2]
[347100480,1735498239099,-500.0,0.00015999,2]
[347100482,1735498239108,-500.0,0.00015999,2]
[347100484,1735498239117,-500.0,0.00015999,2]
[347100486,1735498239126,-512.65761475,0.00015999,2]
[347100488,1735498239135,-500.0,0.00015999,2]
[347100490,1735498239143,-500.0,0.00015999,2]
[347100492,1735498239152,-500.0,0.00015999,2]
[347100494,1735498239161,-500.0,0.00015999,2]
[347100496,1735498239170,-204.15414417,0.00015999,2]
[347100498,1735498239179,-500.0,0.00015999,2]
[347100500,1735498239188,-500.0,0.00015999,2]
[347100502,1735498239197,-500.0,0.00015999,2]
[347100504,1735498239206,-500.0,0.00015999,2]
[347100506,1735498239215,-42393.48154631,0.00016,2]
[347100508,1735498239224,-150.0,0.00016113,2]
[347100510,1735498239232,-150.0,0.0001617,2]
[347100512,1735498239242,-997.07,0.00016187,2]
[347100514,1735498239251,-537.28018135,0.00016188,2]
[347100516,1735498239260,-1358.06,0.00016188,2]
[347100518,1735498239269,-2080.91,0.00016188,2]
[347100520,1735498239278,-920.38,0.00016188,2]
[347100521,1735498239288,-29961.0,0.00016192,2]
[347100522,1735498239299,-500.0,0.00016234,2]
[347100523,1735498239308,-437.4,0.00016258,2]
[347100524,1735498239318,-874.62,0.00016258,2]
[347100525,1735498239327,-500.0,0.00016273,2]
[347100526,1735498239336,-758.5,0.00016273,2]
[347100527,1735498239348,-500.0,0.00016273,2]
[347100528,1735498239357,-500.0,0.00016273,2]
[347100529,1735498239366,-500.0,0.00016273,2]
[347100530,1735498239375,-500.0,0.00016273,2]
[347100531,1735498239384,-500.0,0.00016273,2]
[347100533,1735498239393,-500.0,0.00016273,2]
[347100535,1735498239403,-485.1,0.00016273,2]
[347100537,1735498239412,-394.49509759,0.00016273,2]
[347100539,1735498239421,-500.0,0.00016273,2]
[347100541,1735498239430,-500.0,0.00016273,2]
[347100543,1735498239440,-225.25,0.00016273,2]
[347100545,1735498239449,-500.0,0.00016273,2]
[347100568,1735498239650,-500.0,0.00016273,2]
[347100570,1735498239659,-500.0,0.00016273,2]
[347100572,1735498239668,-500.0,0.00016273,2]
[347100574,1735498239677,-1199.92,0.00016273,2]
[347100576,1735498239687,-500.0,0.00016273,2]
[347100578,1735498239696,-500.0,0.00016273,2]
[347100580,1735498239704,-500.0,0.00016273,2]
[347100582,1735498239713,-500.0,0.00016273,2]
[347100584,1735498239722,-500.0,0.00016273,2]
[347100586,1735498239731,-307.98,0.00016273,2]
[347100588,1735498239740,-500.0,0.00016273,2]
[347100590,1735498239748,-572.27,0.00016273,2]
[347100592,1735498239757,-500.0,0.00016273,2]
[347100594,1735498239766,-504.31732584,0.00016273,2]
[347100596,1735498239775,-389.92,0.00016273,2]
[347100598,1735498239784,-185.31,0.00016273,2]
[347100600,1735498239793,-292.23,0.00016273,2]
[347100602,1735498239803,-1344.0,0.00016415,7]
[347100604,1735498239812,-1344.0,0.00016415,7]
[347100606,1735498239821,-1344.0,0.00016415,7]
[347100608,1735498239829,-1344.0,0.00016415,7]
[347100610,1735498239838,-150.0,0.00016438,2]
[347100612,1735498239848,-150.0,0.00016438,2]
[347100614,1735498239858,-250.0,0.00016438,2]
[347100616,1735498239867,-997.07,0.00016461,2]
[347100618,1735498239876,-1358.06,0.00016462,2]
[347100620,1735498239885,-2080.91,0.00016462,2]
[347100622,1735498239894,-920.38,0.00016462,2]
[347100624,1735498239905,-500.0,0.00016508,2]
[347100626,1735498239914,-500.0,0.00016508,2]